Cogmind - Beta 14 @@@ ROGUE MODE // 2024.09.26 @ 21:49:36 Player: RrQq Result: Destroyed by P-80 Master with Gamma Rifle Performance ------------- Evolutions (5) 2500 Regions Visited (21) 4200 Robots Destroyed (307) 1535 Value Destroyed (10540) 10540 Prototype IDs (28) 560 Alien Tech Used (0) 0 Bonus (6069) 6069 TOTAL SCORE: 25404 Bonus ------- High Alert Combat Kills 687 Follower Combat Kills 656 Awakened Behemoth Slayer 1000 Met Data Miner 300 Met Warlord at Base 500 MAIN.C Attacked Warlord 500 Warlord Defense Kills 2562 Friendly Fire -136 Cogmind --------- Core Integrity 0/1000 Matter 270/300 Energy 94/100 System Corruption 2% Temperature Critical (669) Movement Core (50) Location -5/Warlord Parts ------- > --- POWER (2) -------- (None) > --- PROPULSION (4) --- (None) > --- UTILITY (9) ------ Improved Signal Interpreter Advanced Terrain Scan Processor Advanced Targeting Computer > --- WEAPON (2) ------- (None) > --- INVENTORY (5) ---- Experimental Sensor Array Long-range Tractor Beam CR-A16's Behemoth Slayer Peak State ------------ > --- POWER ------------ Makeshift Power Source Angular Momentum Engine > --- PROPULSION ------- Heavy Treads Armored Huge Wheel > --- UTILITY ---------- Improved Cooling System Huge Storage Unit Improved Signal Interpreter Advanced Terrain Scan Processor Advanced Targeting Computer Makeshift Heavy Armor Plating Advanced Drone Bay > --- WEAPON ----------- Vortex Catalyst Activator > --- INVENTORY -------- Improved Medium Treads Armored Medium Treads Advanced Cooling System Matter Compressor Matter Compressor Advanced Sensor Array Experimental Sensor Array Improved Signal Interpreter Improved Signal Interpreter Advanced Terrain Scanner Cloaking Device Improved Focal Shield Hardlight Generator Advanced Shield Generator Makeshift System Shield Improved Corruption Screen Long-range Tractor Beam Vortex Shotgun Vortex Shotgun Neutron Cannon Vortex Cannon Vortex Cannon Enhanced Gauss Cannon Vortex Lance CR-A16's Behemoth Slayer [Rating: 101] Favorites ----------- Power Angular Momentum Engine Engine Angular Momentum Engine Power Core Neutrino Core Propulsion Light Treads Treads Light Treads Leg Aluminum Leg Wheel Armored Huge Wheel Utility Huge Storage Unit Device Improved Sensor Array Storage Huge Storage Unit Processor Advanced Targeting Computer Hackware Hacking Suite Protection Medium Armor Plating Weapon Enhanced Gauss Cannon Energy Gun Heavy Beamcaster Energy Cannon Neutron Cannon Ballistic Gun Minigun Ballistic Cannon Enhanced Gauss Cannon Launcher Rocket Launcher Slashing Weapon Scythe Piercing Weapon CR-A16's Behemoth Slayer Build | -11 -10 -10 -9 -9 -9 -8 -8 -7 -7 -7 -7 -6 -6 -6 -6 -6 -5 -5 -5 -5 -5 ------- Run | Yrd Mat Min Mat Min Exi Min Mat Fac Low Low Zio Pro Fac Low Low Dat Pro Fac Upp Upp War Slots Evolved 10 | . . . 2 . . . 2 2 . . . . 2 . . . . 2 . . . Power 1 | . . . . . . . . . . . . . . . . . . 1 . . . Propulsion 2 | . . . 1 . . . . 1 . . . . . . . . . . . . . Utility 7 | . . . 1 . . . 2 1 . . . . 2 . . . . 1 . . . Weapon . | . . . . . . . . . . . . . . . . . . . . . . Parts Attached 293 | 4 9 5 46 5 . 8 60 12 7 12 6 21 8 17 17 . 9 28 1 7 11 Power 23 | . 1 . 3 1 . . 4 . 1 1 1 1 1 2 1 . 3 1 1 1 . Engine 17 | . 1 . 3 1 . . 3 . 1 1 . 1 1 2 . . 1 1 . 1 . Core 6 | . . . . . . . 1 . . . 1 . . . 1 . 2 . 1 . . Reactor . | . . . . . . . . . . . . . . . . . . . . . . Propulsion 56 | 2 1 1 17 . . 3 13 2 . 3 . 3 1 2 3 . 1 3 . 1 . Treads 40 | 2 1 . 11 . . 1 10 2 . 3 . 2 . 2 3 . . 2 . 1 . Leg . | . . . . . . . . . . . . . . . . . . . . . . Wheel 16 | . . 1 6 . . 2 3 . . . . 1 1 . . . 1 1 . . . Hover . | . . . . . . . . . . . . . . . . . . . . . . Flight . | . . . . . . . . . . . . . . . . . . . . . . Utility 121 | 1 5 2 6 3 . 2 30 3 4 5 1 10 6 11 7 . 3 15 . 5 2 Device 66 | 1 1 . 2 1 . . 20 2 2 2 . 4 2 6 6 . 2 11 . 4 . Storage 5 | . 2 1 . . . . 1 . . . . 1 . . . . . . . . . Processor 6 | . . . . 1 . 1 2 . . . . . . . . . . 2 . . . Hackware 4 | . . . . . . . 2 1 . . 1 . . . . . . . . . . Protection 40 | . 2 1 4 1 . 1 5 . 2 3 . 5 4 5 1 . 1 2 . 1 2 Artifact . | . . . . . . . . . . . . . . . . . . . . . . Weapon 93 | 1 2 2 20 1 . 3 13 7 2 3 4 7 . 2 6 . 2 9 . . 9 Energy Gun 4 | . . . . . . . . . . . . . . . . . 1 . . . 3 Energy Cannon 3 | . . . . . . . . . . . . . . . . . . . . . 3 Ballistic Gun 28 | 1 2 1 9 . . . 8 5 1 . 1 . . . . . . . . . . Ballistic Cannon 32 | . . 1 4 1 . 2 1 2 . 2 1 5 . 2 3 . 1 7 . . . Launcher 18 | . . . 5 . . 1 2 . 1 1 1 2 . . 3 . . . . . 2 Special Weapon . | . . . . . . . . . . . . . . . . . . . . . . Impact Weapon . | . . . . . . . . . . . . . . . . . . . . . . Slashing Weapon 6 | . . . 2 . . . 2 . . . 1 . . . . . . 1 . . . Piercing Weapon 2 | . . . . . . . . . . . . . . . . . . 1 . . 1 Special Melee Weapon . | . . . . . . . . . . . . . . . . . . . . . . Unidentified Prototypes 8 | . . . 1 1 . . . . . . . . . . . . . 1 . . 5 Parts Lost 60 | . 1 1 6 1 . 4 4 . . 3 . 1 3 5 8 . 10 1 1 1 10 Power 8 | . . . . . . . 1 . . . . . . . 1 . 2 . 1 1 2 Propulsion 16 | . . . 2 . . 2 2 . . 2 . . 2 . 1 . 3 . . . 2 Utility 20 | . 1 . 3 1 . 1 . . . . . . 1 3 4 . 3 . . . 3 Weapon 16 | . . 1 1 . . 1 1 . . 1 . 1 . 2 2 . 2 1 . . 3 Highest Loss Streak 10 | . 1 1 4 1 . 2 2 . . 2 . 1 3 4 3 . 10 1 1 1 8 To Critical Strikes 1 | . . . . . . . . . . . . . . . . . . . . . 1 Average Slot Usage (%) 92 | . 99 99 99 100 100 99 92 91 92 91 92 91 87 90 89 86 68 84 93 85 74 Engine 8 | . 14 14 11 11 11 11 7 7 7 7 1 . 6 6 1 . 4 6 10 7 10 Core 1 | . . . . . . . 1 . . . 5 6 . . 4 6 1 . . 1 . Treads 15 | . 28 26 22 22 22 22 11 14 15 15 15 15 3 7 12 13 2 8 11 8 4 Wheel 7 | . . 1 10 11 11 10 8 7 7 7 7 7 11 8 6 6 5 4 5 5 4 Device 8 | . 3 . 10 2 . . 8 6 6 4 7 4 7 11 15 20 13 15 17 12 10 Storage 8 | . 14 14 11 11 11 11 9 7 7 7 7 7 6 6 6 6 6 5 5 5 5 Processor 10 | . . . . 8 11 11 17 15 15 15 15 15 13 13 13 13 13 15 17 17 17 Hackware 5 | . . . . . . . 3 15 15 15 15 15 13 13 13 13 7 5 5 4 . Protection 6 | . 10 14 10 10 11 11 5 . . 2 . 3 11 7 3 . 5 5 5 5 4 Ballistic Gun 7 | . 26 27 9 . . . 11 14 14 7 . . . . . . . . . . . Ballistic Cannon 7 | . . . 6 22 22 21 6 . . 4 7 14 13 13 5 . . 9 11 11 4 Launcher 1 | . . . 5 . . . . . . 1 . . . . 4 6 . . . . . Peak Build Rating 101 | 7 14 17 24 33 27 29 46 50 49 49 51 58 70 73 71 65 71 87 87 93 101 Average Rating 45 | 6 12 13 21 26 27 26 38 47 48 47 50 53 66 68 66 65 52 76 86 86 94 On Entrance 46 | 6 7 14 17 23 27 27 26 42 49 48 49 51 54 69 69 65 65 52 86 87 93 Naked Turns . | . . . . . . . . . . . . . . . . . . . . . . Heaviest Build 150 | 14 60 102 109 112 110 112 109 102 108 106 107 120 140 122 120 106 106 135 129 148 150 Greatest Support 70 | 40 40 40 40 10 10 40 38 28 28 28 28 28 56 56 28 28 28 28 28 28 70 Greatest Overweight (x) 11 | . 1 10 10 11 10 10 10 3 3 3 3 4 4 4 4 3 3 4 4 5 5 Average Overweight (x) 4 | . . 3 9 10 10 6 4 3 3 3 3 3 2 3 3 3 3 3 4 4 2 Largest Inventory Capacity 25 | 8 20 25 25 25 25 25 25 25 25 25 25 25 25 25 25 25 25 25 25 25 25 Average Capacity 24 | 8 18 24 25 25 25 25 25 25 25 25 25 25 25 25 25 25 25 25 25 25 24 Most Carried 25 | 6 20 24 25 25 25 25 25 25 25 25 25 25 25 25 25 24 24 25 25 25 25 Average Carried 23 | 4 16 22 24 24 25 24 24 24 24 24 24 24 24 23 23 24 18 22 25 24 24 Final Capacity 25 | 8 20 25 25 25 25 25 25 25 25 25 25 25 25 25 25 25 25 25 25 25 5 Final Carried 25 | 2 20 24 25 25 25 24 25 25 25 24 25 25 25 24 24 24 19 25 25 24 3 Class Distribution -------------------- 37% | Mutant 31% | Hacker-Mutant 20% | Scavenger-Mutant 9% | Skirmisher Dominant Class ---------------- Mutant | -10/Materials Mutant | -10/Mines Scavenger-Mutant | -9/Materials Scavenger-Mutant | -9/Mines Scavenger-Mutant | -9/Exiles Scavenger-Mutant | -8/Mines Mutant | -8/Materials Hacker-Mutant | -7/Factory Hacker-Mutant | -7/Lower Caves Hacker-Mutant | -7/Lower Caves Hacker-Mutant | -7/Zion Hacker-Mutant | -6/Proximity Caves Hacker-Mutant | -6/Factory Hacker-Mutant | -6/Lower Caves Hacker-Mutant | -6/Lower Caves Hacker-Mutant | -6/Data Miner Mutant | -5/Proximity Caves Skirmisher | -5/Factory Skirmisher | -5/Upper Caves Skirmisher | -5/Upper Caves Mutant | -5/Warlord Resources | -11 -10 -10 -9 -9 -9 -8 -8 -7 -7 -7 -7 -6 -6 -6 -6 -6 -5 -5 -5 -5 -5 ----------- Run | Yrd Mat Min Mat Min Exi Min Mat Fac Low Low Zio Pro Fac Low Low Dat Pro Fac Upp Upp War Matter Collected 12193 | 245 831 301 2604 312 . 362 1776 . 436 257 30 1241 579 1059 642 . 123 652 292 357 94 Remotely . | . . . . . . . . . . . . . . . . . . . . . . Salvage Created 10015 | 128 924 275 2697 269 . 417 2132 . 211 121 . 620 530 256 231 . 152 163 248 198 443 Parts 505 | 6 62 13 162 16 . 13 108 . 8 8 . 31 26 8 9 . 5 12 2 3 13 Haulers Intercepted 13 | . 2 . 6 . . . 5 . . . . . . . . . . . . . . Recyclers Shooed 10 | . 1 . 5 . . 1 2 . . . . . 1 . . . . . . . . Parts Field Recycled . | . . . . . . . . . . . . . . . . . . . . . . Retrieved Matter . | . . . . . . . . . . . . . . . . . . . . . . Parts Self-Destructed 106 | . . . . . . . . . 17 6 . 51 . 10 9 . 10 . . 3 . Prevented 7 | . . . . . . . . . 3 . . 4 . . . . . . . . . Kills | -11 -10 -10 -9 -9 -9 -8 -8 -7 -7 -7 -7 -6 -6 -6 -6 -6 -5 -5 -5 -5 -5 ------- Run | Yrd Mat Min Mat Min Exi Min Mat Fac Low Low Zio Pro Fac Low Low Dat Pro Fac Upp Upp War Combat Hostiles Destroyed 245 | . 18 11 52 8 . 12 35 . 7 6 . 23 11 14 13 . 6 2 2 5 20 Guns 82 | . 18 11 19 . . . 20 . 4 1 . . . . . . 6 . . . 3 Cannons 89 | . . . 21 8 . 6 11 . . 1 . 7 11 14 1 . . 1 2 5 1 AOE 73 | . . . 12 . . 6 4 . 3 4 . 16 . . 12 . . . . . 16 Classes Destroyed 23 | 2 5 2 4 . . . 3 . . 1 . 1 1 . 1 . . . . . 3 Worker 12 | . . . 6 1 . . 5 . . . . . . . . . . . . . . Builder 14 | . 1 . 12 . . . 1 . . . . . . . . . . . . . . Tunneler 4 | 1 . . 1 . . 1 1 . . . . . . . . . . . . . . Hauler 13 | . 2 . 6 . . . 5 . . . . . . . . . . . . . . Recycler 12 | 1 2 . 5 . . 1 1 . . . . 1 1 . . . . . . . . Mechanic 4 | . . . 3 . . . . . . . . . . . . . . . . . 1 Operator 4 | . . . . . . . 2 . . . . . 1 . . . . 1 . . . Drone 2 | . . . . . . . . . . . . 2 . . . . . . . . . Watcher 16 | . 3 . 4 . . . 4 . . . . 2 1 . . . . 2 . . . Swarmer 50 | . 5 4 . . . 4 . . 5 4 . 6 4 5 3 . 6 . . . 4 Grunt 129 | . 13 . 38 8 . 8 23 . . . . 8 6 5 6 . . 1 1 4 8 Brawler 7 | . . . 2 . . . 1 . 1 . . . . 2 . . . . . . 1 Duelist 6 | . . . 2 . . . 1 . . . . 1 . . 1 . . . . 1 . Sentry 29 | . . 2 10 . . . 7 . 1 1 . 6 1 . . . . . 1 . . Specialist 2 | . . . . . . . . . . . . . 1 . . . . . . . 1 Hunter 7 | . . . . . . . 2 . . . . . . 2 2 . . . . . 1 Programmer 1 | . . . . . . . . . . . . . . . . . . . . . 1 Heavy 1 | . . . . . . . 1 . . . . . . . . . . . . . . Behemoth 2 | . . . . . . . . . . 1 . . . . . . . 1 . . . Striker 3 | . . . . . . . . . . . . . . . . . . . . . 3 Executioner 1 | . . . . . . . . . . . . . . . . . . . . . 1 Thief 1 | . . . . . . . . . . . . . . . 1 . . . . . . Assembled 5 | . . 5 . . . . . . . . . . . . . . . . . . . Best Kill Streak 11 | 2 5 3 6 3 . 7 5 . 3 4 . 10 6 4 4 . 6 1 1 3 11 Combat Bots Only 10 | . 4 3 6 3 . 7 3 . 3 4 . 10 4 4 4 . 6 1 1 3 10 Max Kills in Single Turn 6 | 1 1 1 3 1 . 4 2 . 1 2 . 3 1 1 3 . 1 1 1 1 6 Gunslinging . | . . . . . . . . . . . . . . . . . . . . . . Exploded 6 | . . . 2 . . 4 1 . 1 2 . 3 . . 3 . . . . . 6 Melee . | . . . . . . . . . . . . . . . . . . . . . . Uniques/NPCs Destroyed . | . . . . . . . . . . . . . . . . . . . . . . Combat | -11 -10 -10 -9 -9 -9 -8 -8 -7 -7 -7 -7 -6 -6 -6 -6 -6 -5 -5 -5 -5 -5 -------- Run | Yrd Mat Min Mat Min Exi Min Mat Fac Low Low Zio Pro Fac Low Low Dat Pro Fac Upp Upp War Hostile Shots Fired 1627 | . 100 41 240 28 . 43 120 . 61 80 . 211 96 156 54 . 75 81 10 51 180 Missed 467 | . 30 13 57 4 . 12 23 . 24 21 . 94 26 40 8 . 19 22 5 7 62 Damage Taken 17642 | . 716 369 2038 198 . 484 1943 . 723 782 . 1420 1101 1616 842 . 741 1375 80 1107 2107 Core 2490 | . 124 96 202 21 . 17 253 . 60 112 . 136 72 126 130 . 122 118 12 409 480 Absorbed by Shields 920 | . . . 666 63 . . . . . . . . . . 112 . 79 . . . . Redirected to Shielding 27 | . . . . . . . . . . . . . . . . . 15 10 . 2 . Ignored by Resistances 753 | . . . . . . . . . . . . . 68 418 20 . . 146 13 88 . Regen/Repaired (Parts) 1258 | . . . 157 . . . 212 . . . 371 . . . . . . 109 . . 409 Core Remaining (%) 51 | 100 . 12 . . . 40 54 . . . . 56 . . . . 47 . . . . Volleys Fired 801 | 5 70 32 208 19 . 25 149 . 27 14 . 59 31 57 28 . 14 16 9 19 19 Largest 2 | 2 2 2 2 2 . 2 2 . 2 2 . 2 2 2 2 . 2 2 2 2 2 Hottest 134 | 60 46 46 80 105 . 105 92 . 50 96 . 114 114 114 72 . 134 134 114 114 120 Shots Fired 1503 | 10 140 64 402 38 . 48 291 . 50 23 . 103 62 114 30 . 16 28 19 37 28 Gun 713 | 10 140 64 204 . . . 210 . 46 7 . . . . . . 14 2 . . 16 Cannon 669 | . . . 158 38 . 46 74 . . 12 . 77 62 114 1 . 2 26 19 37 3 Launcher 121 | . . . 40 . . 2 7 . 4 4 . 26 . . 29 . . . . . 9 Special . | . . . . . . . . . . . . . . . . . . . . . . Kinetic 1342 | 5 140 64 362 38 . 46 284 . 46 19 . 77 62 114 1 . 2 26 19 37 . Thermal 16 | . . . . . . . . . . . . . . . . . 14 2 . . . Explosive 112 | . . . 40 . . 2 7 . 4 4 . 26 . . 29 . . . . . . Electromagnetic 5 | 5 . . . . . . . . . . . . . . . . . . . . . Entropic 28 | . . . . . . . . . . . . . . . . . . . . . 28 Robot Hit Streak 33 | 3 9 8 23 5 . 6 14 . 33 10 . 28 7 15 10 . 3 11 12 5 9 Robot Miss Streak 6 | 2 4 5 6 5 . 4 5 . 2 2 . 3 5 3 3 . 2 2 1 4 3 Penetration Max 2 | . . . 2 . . . . . . . . . 1 1 . . . . . . . Secondary Targets 7 | . 3 . 1 . . . 3 . . . . . . . . . . . . . . Max Gunslinging Chain 1 | . 1 . 1 . . . 1 . . . . . . . . . . . . . . Shots Hit Robots 954 | 4 82 35 234 19 . 24 201 . 43 17 . 77 37 79 18 . 10 19 13 18 24 Core Hits 507 | 3 37 18 126 10 . 18 91 . 10 13 . 57 17 22 33 . 6 4 9 7 26 Critical Kills 31 | . . . 22 5 . 2 2 . . . . . . . . . . . . . . Critical Parts Destroyed 41 | . . . 30 4 . 3 4 . . . . . . . . . . . . . . Critical Strikes 118 | . . . 55 9 . 6 9 . . . . 4 8 12 1 . 1 3 5 3 2 Burn 1 | . . . . . . . . . . . . . . . . . 1 . . . . Destroy 76 | . . . 55 9 . 5 7 . . . . . . . . . . . . . . Blast 39 | . . . . . . 1 2 . . . . 4 8 12 1 . . 3 5 3 . Sunder 2 | . . . . . . . . . . . . . . . . . . . . . 2 Melee Attacks 14 | . . . 5 . . . 2 . . . 1 . . . . . . 6 . . . Impact . | . . . . . . . . . . . . . . . . . . . . . . Slashing 8 | . . . 5 . . . 2 . . . 1 . . . . . . . . . . Piercing 6 | . . . . . . . . . . . . . . . . . . 6 . . . Sneak Attacks 2 | . . . 2 . . . . . . . . . . . . . . . . . . Combat Hostiles . | . . . . . . . . . . . . . . . . . . . . . . Follow-up Attacks . | . . . . . . . . . . . . . . . . . . . . . . Damage Inflicted 33536 | 63 1335 528 6831 558 . 1015 4354 . 1002 770 . 3652 1439 2281 2154 . 261 559 556 595 5583 Guns 8473 | 63 1306 524 2106 . . . 2732 . 688 119 . . . . . . 227 44 . . 664 Cannons 11822 | . . . 2069 468 . 697 1151 . . 254 . 1587 1439 2281 34 . 34 449 556 575 228 Explosions 12940 | . . . 2474 90 . 318 471 . 314 397 . 2065 . . 2120 . . . . . 4691 Melee 242 | . . . 176 . . . . . . . . . . . . . . 66 . . . Ramming 59 | . 29 4 6 . . . . . . . . . . . . . . . . 20 . Kinetic 19076 | 7 1306 524 4175 468 . 697 3883 . 688 373 . 1587 1439 2281 34 . 34 449 556 575 . Thermal 361 | . . . . 90 . . . . . . . . . . . . 227 44 . . . Explosive 8159 | . . . 2474 . . 318 471 . 314 397 . 2065 . . 2120 . . . . . . Electromagnetic 56 | 56 . . . . . . . . . . . . . . . . . . . . . Impact . | . . . . . . . . . . . . . . . . . . . . . . Slashing 176 | . . . 176 . . . . . . . . . . . . . . . . . . Piercing 66 | . . . . . . . . . . . . . . . . . . 66 . . . Entropic 5583 | . . . . . . . . . . . . . . . . . . . . . 5583 Highest Corruption 6 | . . . . . . . . . . . . . . . . . . 6 6 6 6 Average Corruption 5 | . . . . . . . . . . . . . . . . . . 4 6 6 5 Corruption Purged . | . . . . . . . . . . . . . . . . . . . . . . Corruption Blocked . | . . . . . . . . . . . . . . . . . . . . . . Effects 106 | . . . . . . . . . . . . . . . . . . 28 40 35 3 Message Errors 24 | . . . . . . . . . . . . . . . . . . 7 10 7 . Matter Fused 29 | . . . . . . . . . . . . . . . . . . 6 14 8 1 Heat Flow Errors 9 | . . . . . . . . . . . . . . . . . . 2 2 4 1 Energy Discharges 10 | . . . . . . . . . . . . . . . . . . 3 4 3 . Parts Rejected 1 | . . . . . . . . . . . . . . . . . . 1 . . . Parts Fused 1 | . . . . . . . . . . . . . . . . . . . 1 . . Data Loss (minor) 14 | . . . . . . . . . . . . . . . . . . 5 3 5 1 Data Loss (major) 10 | . . . . . . . . . . . . . . . . . . 2 4 4 . Misfires 4 | . . . . . . . . . . . . . . . . . . 1 2 1 . Alerts 2 | . . . . . . . . . . . . . . . . . . 1 . 1 . Weapon Failures 2 | . . . . . . . . . . . . . . . . . . . . 2 . Overload Shots . | . . . . . . . . . . . . . . . . . . . . . . Overflow Damage 1053 | . . . 152 . . 61 29 . 86 18 . 114 44 44 65 . . 44 34 . 362 Projectiles 337 | . . . 14 . . 41 29 . . . . 72 44 44 . . . 44 34 . 15 Explosions 668 | . . . 90 . . 20 . . 86 18 . 42 . . 65 . . . . . 347 Melee 48 | . . . 48 . . . . . . . . . . . . . . . . . . Knockbacks 88 | . . 1 19 4 . 10 4 . . . . 1 16 18 . . 1 5 2 7 . Impact 2 | . . 1 . . . . . . . . . . . . . . . . . 1 . Kinetic 84 | . . . 19 4 . 8 4 . . . . 1 16 18 . . 1 5 2 6 . Secondary 2 | . . . . . . 2 . . . . . . . . . . . . . . . Self-Inflicted Damage 227 | . . . 34 . . . . . . . . 23 . . 170 . . . . . . Shots 7 | . . . 1 . . . . . . . . 1 . . 5 . . . . . . Rammed 8 | . 4 1 2 . . . . . . . . . . . . . . . . 1 . Targets Rammed 9 | . 5 1 2 . . . . . . . . . . . . . . . . 1 . Kicked . | . . . . . . . . . . . . . . . . . . . . . . Crushed 1 | . 1 . . . . . . . . . . . . . . . . . . . . Highest Temperature 624 | 40 151 76 436 315 . 282 180 . 30 149 . 252 396 9 9 . 118 266 174 624 401 Average Temperature 81 | 20 50 21 84 111 . 105 32 . 8 63 . 84 109 3 7 . 61 89 53 222 92 Received Heat Transfer 5119 | . 261 54 830 85 . 243 612 . 75 126 . 318 441 306 165 . . 416 27 381 779 Effects 18 | . . . 2 . . 4 . . . . . . . . . . . . . 11 1 Shutdowns 4 | . . . 1 . . . . . . . . . . . . . . . . 3 . Energy Bleed 3 | . . . 1 . . 1 . . . . . . . . . . . . . 1 . Interference 4 | . . . . . . 3 . . . . . . . . . . . . . 1 . Matter Decay 1 | . . . . . . . . . . . . . . . . . . . . 1 . Damage (minor) 1 | . . . . . . . . . . . . . . . . . . . . . 1 Damage (major) 3 | . . . . . . . . . . . . . . . . . . . . 3 . Damage (core) 2 | . . . . . . . . . . . . . . . . . . . . 2 . Siege Activations . | . . . . . . . . . . . . . . . . . . . . . . Robots Corrupted . | . . . . . . . . . . . . . . . . . . . . . . Combat Hostiles . | . . . . . . . . . . . . . . . . . . . . . . Parts Fried . | . . . . . . . . . . . . . . . . . . . . . . Impact Corruptions . | . . . . . . . . . . . . . . . . . . . . . . Robots Melted . | . . . . . . . . . . . . . . . . . . . . . . Combat Hostiles . | . . . . . . . . . . . . . . . . . . . . . . Parts Melted 2 | . . . . . . . . . . . . . . . . . 2 . . . . Heat Transferred 618 | . . . . 100 . . . . . . . . . . . . 444 74 . . . Parts Sabotaged . | . . . . . . . . . . . . . . . . . . . . . . Parts Stolen 2 | . . . . . . . . . . . . . . . 2 . . . . . . Parts Stripped . | . . . . . . . . . . . . . . . . . . . . . . Power Chain Reactions . | . . . . . . . . . . . . . . . . . . . . . . Alert | -11 -10 -10 -9 -9 -9 -8 -8 -7 -7 -7 -7 -6 -6 -6 -6 -6 -5 -5 -5 -5 -5 ------- Run | Yrd Mat Min Mat Min Exi Min Mat Fac Low Low Zio Pro Fac Low Low Dat Pro Fac Upp Upp War Peak Influence 1398 | 10 223 198 1398 823 . 179 500 188 . . . . 294 . . . . 274 . . . Initial 543 | . 6 72 . 543 . . . 144 . . . . 34 . . . . . . . . Average 288 | 7 89 26 596 601 . 46 242 89 . . . . 128 . . . . 95 . . . Maximum Alert Level 4 | . 1 . 4 3 . . 2 . . . . . 1 . . . . 1 . . . Low Security (%) 53 | 100 97 100 12 . . 100 36 100 . . . . 97 . . . . 77 . . . Level 1 17 | . 2 . 25 . . . 45 . . . . . 2 . . . . 22 . . . Level 2 17 | . . . 23 82 . . 18 . . . . . . . . . . . . . . Level 3 8 | . . . 27 17 . . . . . . . . . . . . . . . . . Level 4 2 | . . . 10 . . . . . . . . . . . . . . . . . . Level 5 . | . . . . . . . . . . . . . . . . . . . . . . High Security . | . . . . . . . . . . . . . . . . . . . . . . Max Security . | . . . . . . . . . . . . . . . . . . . . . . Sterilizations 1 | . . . 1 . . . . . . . . . . . . . . . . . . Squads Dispatched 29 | . 3 . 10 . . 1 7 . . . . 2 2 . . . . 4 . . . Investigation 9 | . 2 . . . . 1 2 . . . . 2 . . . . . 2 . . . Extermination 3 | . . . . . . . . . . . . . 1 . . . . 2 . . . Reinforcement 14 | . 1 . 7 . . . 5 . . . . . 1 . . . . . . . . Assault 3 | . . . 3 . . . . . . . . . . . . . . . . . . Garrison . | . . . . . . . . . . . . . . . . . . . . . . Intercept . | . . . . . . . . . . . . . . . . . . . . . . Searches Triggered . | . . . . . . . . . . . . . . . . . . . . . . Construction Impeded 4 | . . . 4 . . . . . . . . . . . . . . . . . . Haulers Reinforced . | . . . . . . . . . . . . . . . . . . . . . . Active Scanning Responses . | . . . . . . . . . . . . . . . . . . . . . . Cargo Convoy Interrupts . | . . . . . . . . . . . . . . . . . . . . . . Stealth | -11 -10 -10 -9 -9 -9 -8 -8 -7 -7 -7 -7 -6 -6 -6 -6 -6 -5 -5 -5 -5 -5 --------- Run | Yrd Mat Min Mat Min Exi Min Mat Fac Low Low Zio Pro Fac Low Low Dat Pro Fac Upp Upp War Distress Signals 14 | . 1 . 4 . . 1 4 . . . . 1 . . . . . 2 . . 1 Communications Jammed . | . . . . . . . . . . . . . . . . . . . . . . Distress Signals . | . . . . . . . . . . . . . . . . . . . . . . Times Spotted 376 | . 27 14 84 17 . 16 62 2 17 6 . 30 15 14 14 . 8 11 4 9 26 Peak Tracking Total 10 | . 5 3 6 3 . 5 6 1 7 4 . 10 5 4 4 . 8 2 3 5 10 Tactical Retreats 37 | . 1 1 6 4 . 5 9 . 2 1 . 4 2 . . . . . 1 . 1 Traps | -11 -10 -10 -9 -9 -9 -8 -8 -7 -7 -7 -7 -6 -6 -6 -6 -6 -5 -5 -5 -5 -5 ------- Run | Yrd Mat Min Mat Min Exi Min Mat Fac Low Low Zio Pro Fac Low Low Dat Pro Fac Upp Upp War Traps Triggered 6 | . . . . . . . 1 3 . . . . . . . . . 2 . . . Indirectly . | . . . . . . . . . . . . . . . . . . . . . . Trap Hack Attempts . | . . . . . . . . . . . . . . . . . . . . . . Triggered . | . . . . . . . . . . . . . . . . . . . . . . Disarmed . | . . . . . . . . . . . . . . . . . . . . . . Reprogrammed . | . . . . . . . . . . . . . . . . . . . . . . Reused . | . . . . . . . . . . . . . . . . . . . . . . Traps Extracted . | . . . . . . . . . . . . . . . . . . . . . . Installed . | . . . . . . . . . . . . . . . . . . . . . . Triggered 23 | . . . . . . . . . . . . . . . . . 1 . . . 22 Machines | -11 -10 -10 -9 -9 -9 -8 -8 -7 -7 -7 -7 -6 -6 -6 -6 -6 -5 -5 -5 -5 -5 ---------- Run | Yrd Mat Min Mat Min Exi Min Mat Fac Low Low Zio Pro Fac Low Low Dat Pro Fac Upp Upp War Machines Disabled 33 | . . . 6 5 . . 4 1 . . . 5 2 . 1 . . 8 . . 1 Max in Single Turn 4 | . . . 1 1 . . 1 . . . . 2 1 . 1 . . 4 . . 1 Garrison Access 1 | . . . . . . . 1 . . . . . . . . . . . . . . Machines Repaired . | . . . . . . . . . . . . . . . . . . . . . . Machines Dismantled . | . . . . . . . . . . . . . . . . . . . . . . Machines Sabotaged . | . . . . . . . . . . . . . . . . . . . . . . Overloaded Fab Kills . | . . . . . . . . . . . . . . . . . . . . . . Hacking | -11 -10 -10 -9 -9 -9 -8 -8 -7 -7 -7 -7 -6 -6 -6 -6 -6 -5 -5 -5 -5 -5 --------- Run | Yrd Mat Min Mat Min Exi Min Mat Fac Low Low Zio Pro Fac Low Low Dat Pro Fac Upp Upp War Machines Accessed 52 | . 6 . 10 1 . 1 11 4 1 . . 2 . . 2 4 . 3 1 . 6 Terminals 26 | . 4 . 8 1 . 1 7 3 . . . . . . . . . 1 1 . . Fabricators 3 | . . . . . . . . 1 . . . 1 . . . . . 1 . . . Repair Stations 4 | . . . 1 . . . 2 . . . . . . . . . . 1 . . . Recycling Units 4 | . 2 . 1 . . . . . . . . 1 . . . . . . . . . Scanalyzers 1 | . . . . . . . 1 . . . . . . . . . . . . . . Garrison Access 1 | . . . . . . . 1 . . . . . . . . . . . . . . Total Hacks 138 | . 16 . 23 3 . 3 30 8 1 . . 7 . . 2 31 . 7 1 . 6 Successful 93 | . 9 . 15 1 . . 17 3 1 . . 3 . . 2 31 . 4 1 . 6 Failed 43 | . 6 . 7 2 . 3 13 5 . . . 4 . . . . . 3 . . . Catastrophic 5 | . . . . 1 . 1 2 . . . . . . . . . . 1 . . . Database Lockouts 2 | . 1 . 1 . . . . . . . . . . . . . . . . . . Manual 38 | . 9 . 12 3 . 3 10 1 . . . . . . . . . . . . . Terminals 68 | . 14 . 20 3 . 3 18 7 . . . . . . . . . 2 1 . . Fabricators 10 | . . . . . . . . 1 . . . 6 . . . . . 3 . . . Repair Stations 11 | . . . 2 . . . 7 . . . . . . . . . . 2 . . . Recycling Units 4 | . 2 . 1 . . . . . . . . 1 . . . . . . . . . Scanalyzers 3 | . . . . . . . 3 . . . . . . . . . . . . . . Garrison Access 2 | . . . . . . . 2 . . . . . . . . . . . . . . Terminal Hacks 67 | . 5 . 8 1 . . 8 3 1 . . . . . 2 31 . 1 1 . 6 Record 20 | . . . . . . . . . 1 . . . . . 1 11 . 1 1 . 5 Part Schematic 11 | . . . . . . . . . . . . . . . . 11 . . . . . Robot Schematic 6 | . . . . . . . . . . . . . . . . 6 . . . . . Robot Analysis 5 | . 1 . 2 1 . . . 1 . . . . . . . . . . . . . Prototype ID Bank 9 | . 2 . 3 . . . 1 . . . . . . . . 3 . . . . . Open Door 2 | . . . . . . . . . . . . . . . 1 . . . . . 1 Emergency Access Points 1 | . 1 . . . . . . . . . . . . . . . . . . . . Alert Level 7 | . . . 2 . . . 3 2 . . . . . . . . . . . . . Unreport Threat 4 | . . . . . . . 4 . . . . . . . . . . . . . . Locate Traps 1 | . 1 . . . . . . . . . . . . . . . . . . . . Transport Status 1 | . . . 1 . . . . . . . . . . . . . . . . . . Fabricator Hacks 4 | . . . . . . . . . . . . 3 . . . . . 1 . . . Load Schematic 1 | . . . . . . . . . . . . 1 . . . . . . . . . Build 3 | . . . . . . . . . . . . 2 . . . . . 1 . . . Repair Station Hacks 10 | . . . 2 . . . 6 . . . . . . . . . . 2 . . . Scan Component 5 | . . . 1 . . . 3 . . . . . . . . . . 1 . . . Repair 5 | . . . 1 . . . 3 . . . . . . . . . . 1 . . . Recycling Unit Hacks 1 | . . . 1 . . . . . . . . . . . . . . . . . . Retrieve Components 1 | . . . 1 . . . . . . . . . . . . . . . . . . Scanalyzer 1 | . . . . . . . 1 . . . . . . . . . . . . . . Insert Component 1 | . . . . . . . 1 . . . . . . . . . . . . . . Garrison Access Hacks 1 | . . . . . . . 1 . . . . . . . . . . . . . . Seal Access 1 | . . . . . . . 1 . . . . . . . . . . . . . . Unauthorized Hacks 9 | . 4 . 4 . . . 1 . . . . . . . . . . . . . . Terminals 7 | . 2 . 4 . . . 1 . . . . . . . . . . . . . . Botnet 7 | . 2 . 4 . . . 1 . . . . . . . . . . . . . . Fabricators . | . . . . . . . . . . . . . . . . . . . . . . Repair Stations . | . . . . . . . . . . . . . . . . . . . . . . Recycling Units 2 | . 2 . . . . . . . . . . . . . . . . . . . . Tunnel 2 | . 2 . . . . . . . . . . . . . . . . . . . . Scanalyzers . | . . . . . . . . . . . . . . . . . . . . . . Garrison Access . | . . . . . . . . . . . . . . . . . . . . . . Data Cores Recovered 2 | . . . . . . . 1 . . . . . . . . . . 1 . . . Used . | . . . . . . . . . . . . . . . . . . . . . . Hacking Detections 30 | . 4 . 5 1 . 1 10 4 . . . 2 . . . . . 3 . . . Full Trace Events 4 | . . . . . . 1 1 . . . . 1 . . . . . 1 . . . Feedback Events . | . . . . . . . . . . . . . . . . . . . . . . Feedback Blocked . | . . . . . . . . . . . . . . . . . . . . . . Robot Schematics Acquired 10 | . . . . . . . . . . . 4 . . . . 6 . . . . . Robots Built 1 | . . . . . . . . . . . . . . . . . . 1 . . . Authchips . | . . . . . . . . . . . . . . . . . . . . . . Time 84 | . . . . . . . . . . . . . . . . . . 84 . . . Total Robot Build Rating 6 | . . . . . . . . . . . . . . . . . . 6 . . . Part Schematics Acquired 25 | . . . . . . . . . . . 14 . . . . 11 . . . . . Parts Built 4 | . . . . . . . . . . . . 4 . . . . . . . . . Authchips . | . . . . . . . . . . . . . . . . . . . . . . Time 100 | . . . . . . . . . . . . 100 . . . . . . . . . Total Part Build Rating 22 | . . . . . . . . . . . . 22 . . . . . . . . . Parts Repaired 5 | . . . 1 . . . 3 . . . . . . . . . . 1 . . . Time 262 | . . . 50 . . . 190 . . . . . . . . . . 22 . . . Parts Recycled . | . . . . . . . . . . . . . . . . . . . . . . Recycled Matter . | . . . . . . . . . . . . . . . . . . . . . . Retrieved Matter . | . . . . . . . . . . . . . . . . . . . . . . Retrieved Components 10 | . . . 10 . . . . . . . . . . . . . . . . . . Parts Scanalyzed 1 | . . . . . . . 1 . . . . . . . . . . . . . . Part Schematics Acquired . | . . . . . . . . . . . . . . . . . . . . . . Parts Damaged . | . . . . . . . . . . . . . . . . . . . . . . Bothacking | -11 -10 -10 -9 -9 -9 -8 -8 -7 -7 -7 -7 -6 -6 -6 -6 -6 -5 -5 -5 -5 -5 ------------ Run | Yrd Mat Min Mat Min Exi Min Mat Fac Low Low Zio Pro Fac Low Low Dat Pro Fac Upp Upp War Used RIF Installer . | . . . . . . . . . . . . . . . . . . . . . . Robots Hacked . | . . . . . . . . . . . . . . . . . . . . . . Non-combat . | . . . . . . . . . . . . . . . . . . . . . . Combat . | . . . . . . . . . . . . . . . . . . . . . . Robot Hacks Applied . | . . . . . . . . . . . . . . . . . . . . . . Relay Couplers Released . | . . . . . . . . . . . . . . . . . . . . . . Fabnet Peak Effective % . | . . . . . . . . . . . . . . . . . . . . . . Robots Rewired 13 | . . . . . . . . . 2 . . 11 . . . . . . . . . Allies Hacked . | . . . . . . . . . . . . . . . . . . . . . . Hacks Repelled . | . . . . . . . . . . . . . . . . . . . . . . Allies | -11 -10 -10 -9 -9 -9 -8 -8 -7 -7 -7 -7 -6 -6 -6 -6 -6 -5 -5 -5 -5 -5 -------- Run | Yrd Mat Min Mat Min Exi Min Mat Fac Low Low Zio Pro Fac Low Low Dat Pro Fac Upp Upp War Total Allies 21 | . . 1 . 3 . . . 3 2 . . 11 . . . . . 1 . . . Largest Group 6 | . . 1 . 3 . . . 3 2 . . 6 6 . . . . 1 1 . . Highest-Rated Group 212 | . . 31 . 40 . . . 93 50 . . 212 212 . . . . 49 49 . . Highest-Rated Ally 49 | . . 31 . 16 . . . 31 30 . . 46 46 . . . . 49 49 . . Total Orders 1 | . . . . . . . . . . . . . . . . . . 1 . . . EXPLORE 1 | . . . . . . . . . . . . . . . . . . 1 . . . Ally Attacks 108 | . . 7 . 45 . . . 12 21 . . 5 9 . . . . 8 1 . . Total Damage 2374 | . . 105 . 414 . . . 86 356 . . . 303 . . . . 774 336 . . Kills 28 | . . 1 . 9 . . . 1 8 . . . 2 . . . . 5 2 . . Allies Corrupted 1 | . . . . . . . . . . . . . 1 . . . . . . . . Allies Melted 2 | . . . . . . . . . . . . . 2 . . . . . . . . Intel | -11 -10 -10 -9 -9 -9 -8 -8 -7 -7 -7 -7 -6 -6 -6 -6 -6 -5 -5 -5 -5 -5 ------- Run | Yrd Mat Min Mat Min Exi Min Mat Fac Low Low Zio Pro Fac Low Low Dat Pro Fac Upp Upp War Robot Analysis Total 5 | . 1 . 2 1 . . . 1 . . . . . . . . . . . . . Derelict Logs Recovered 18 | . . 2 . 3 . . . . 1 2 1 2 . 1 2 . 2 . 1 1 . Drone Launches 2 | . . . . . . . . . . . . . . . . . . 2 . . . Drone Recoveries . | . . . . . . . . . . . . . . . . . . . . . . Exploration | -11 -10 -10 -9 -9 -9 -8 -8 -7 -7 -7 -7 -6 -6 -6 -6 -6 -5 -5 -5 -5 -5 ------------- Run | Yrd Mat Min Mat Min Exi Min Mat Fac Low Low Zio Pro Fac Low Low Dat Pro Fac Upp Upp War Turns Passed 36802 | 52 1972 2530 5357 1773 421 1780 4048 733 1802 1424 1361 2314 580 1639 1720 112 839 1408 1442 1198 2297 Spaces Moved 17198 | 22 782 706 1849 709 184 700 1766 465 1112 926 931 1282 322 981 1058 78 533 625 873 594 700 Core 1 | . . . . . . . . . . . . . . . . . . . . . 1 Treads 2284 | 7 782 602 44 . . 163 . . . . . . . . . . . . . . 686 Legs 15 | 15 . . . . . . . . . . . . . . . . . . . . . Wheels 14898 | . . 104 1805 709 184 537 1766 465 1112 926 931 1282 322 981 1058 78 533 625 873 594 13 Hover . | . . . . . . . . . . . . . . . . . . . . . . Flight . | . . . . . . . . . . . . . . . . . . . . . . Fastest Speed 50 | 120 160 215 190 230 230 190 120 145 145 145 145 145 130 130 145 145 145 145 160 160 50 Average Speed 182 | 132 213 303 226 232 230 235 162 145 145 145 145 148 133 146 153 145 145 156 160 160 315 Slowest Speed 320 | 160 240 320 320 245 230 320 230 145 145 145 145 160 160 160 160 145 145 160 160 175 320 Overloaded Moves . | . . . . . . . . . . . . . . . . . . . . . . Propulsion Burnouts . | . . . . . . . . . . . . . . . . . . . . . . Robots Hopped . | . . . . . . . . . . . . . . . . . . . . . . Cave-ins Triggered . | . . . . . . . . . . . . . . . . . . . . . . Exploration Rate (%) 75 | 3 99 98 99 99 57 98 98 16 98 96 79 94 9 97 96 68 77 24 87 77 83 Regions Visited 21 Branch Regions 15 Pre-discovered Areas 9 | . 2 1 . 1 . . . . . . 1 . . 1 . 1 2 . . . . Known Exits Taken 15 | . . . . . . 1 1 1 1 1 1 1 1 1 1 1 1 1 1 1 . Unknown Exits Taken 6 | 1 1 1 1 1 1 . . . . . . . . . . . . . . . . Scrap Searched 31 | . . 1 . 1 . 3 . . 2 1 3 2 . 4 5 . 4 . 1 4 . Spaces Dug 58 | . . . 27 . . . 12 . . . . 15 . . . . . 3 1 . . Terrain Destroyed 949 | . . . 327 16 . 34 62 . 35 18 . 94 24 38 161 . 1 38 6 24 71 Melee 3 | . . . 1 . . . 2 . . . . . . . . . . . . . . Projectile 249 | . . . 94 13 . 17 16 . . 1 . 4 24 38 . . 1 5 6 24 6 AOE 697 | . . . 232 3 . 17 44 . 35 17 . 90 . . 161 . . 33 . . 65 Terrain Rammed . | . . . . . . . . . . . . . . . . . . . . . . Walls Destroyed . | . . . . . . . . . . . . . . . . . . . . . . Machines Disabled . | . . . . . . . . . . . . . . . . . . . . . . Actions | -11 -10 -10 -9 -9 -9 -8 -8 -7 -7 -7 -7 -6 -6 -6 -6 -6 -5 -5 -5 -5 -5 --------- Run | Yrd Mat Min Mat Min Exi Min Mat Fac Low Low Zio Pro Fac Low Low Dat Pro Fac Upp Upp War Total 21162 | 37 973 1039 2608 798 183 782 2691 522 1262 982 939 1587 413 1068 1124 77 583 1020 901 803 770 Wait 2424 | 1 74 282 441 57 . 43 646 37 97 29 . 146 41 7 2 . 24 297 19 170 11 Move 17178 | 21 781 705 1848 708 183 699 1765 464 1111 925 930 1281 321 980 1057 77 532 624 872 594 700 Hop . | . . . . . . . . . . . . . . . . . . . . . . Pick Up 177 | 1 23 8 24 4 . 4 26 3 3 . 1 18 8 5 13 . 3 20 . 5 8 Fast Attach 50 | 1 4 2 7 . . 1 8 5 . 1 . 3 . 1 1 . . 7 1 2 6 Attach 77 | 2 1 1 10 1 . 3 8 2 . 2 . 3 4 6 9 . 8 10 . 3 4 Detach 10 | . . . . . . . 1 . . . . . . . 1 . . 4 . 1 3 Swap 166 | 1 4 2 29 4 . 4 44 5 7 9 6 15 4 10 7 . 1 11 . 2 1 Drop 194 | 5 11 6 34 5 . 3 42 6 5 2 1 20 4 2 6 . 1 16 . 7 18 Fire 801 | 5 70 32 208 19 . 25 149 . 27 14 . 59 31 57 28 . 14 16 9 19 19 Melee 14 | . . . 5 . . . 2 . . . 1 . . . . . . 6 . . . Ram 2 | . . . 2 . . . . . . . . . . . . . . . . . . Kick . | . . . . . . . . . . . . . . . . . . . . . . Crush 6 | . 5 1 . . . . . . . . . . . . . . . . . . . Escape Stasis . | . . . . . . . . . . . . . . . . . . . . . . Rewire 63 | . . . . . . . . . 12 . . 42 . . . . . 9 . . . Trap . | . . . . . . . . . . . . . . . . . . . . . . Miscellaneous . | . . . . . . . . . . . . . . . . . . . . . . Route ------- -11/Scrapyard -10/Materials (discovered 6 exits: *Mat x3 / [*Min x2] / [*Sub]) -10/Mines (discovered 2 exits: *Mat x2) -9/Materials (discovered 7 exits: *Mat x3 / *Min x2 / *Sto x2) -9/Mines (discovered 4 exits: *Mat x2 / [*Exi] / *Zio) -9/Exiles -8/Mines (discovered 2 exits: *Mat x2) -8/Materials (discovered 3 exits: *Fac x3) -7/Factory -7/Lower Caves -7/Lower Caves (discovered 2 exits: *Fac / *Zio) -7/Zion -6/Proximity Caves -6/Factory (discovered 3 exits: *Fac x2 / *Low) -6/Lower Caves -6/Lower Caves (discovered 2 exits: *Fac / *Dat) -6/Data Miner -5/Proximity Caves -5/Factory (discovered 3 exits: *Fac / *Upp x2) -5/Upper Caves -5/Upper Caves (discovered 2 exits: *Fac / *War) -5/Warlord History --------- Turn | Location | Event 3 | -11/Scrapyard | Discovered new exit (range 3) 53 | -11/Scrapyard | Entered Materials 220 | -10/Materials | Discovered new exit (range 16) 318 | -10/Materials | Build established: Mutant 466 | -10/Materials | Discovered new exit (range 3) 592 | -10/Materials | Discovered new exit (range 9) 951 | -10/Materials | Central database locked down 963 | -10/Materials | Discovered new exit (range 15) 1218 | -10/Materials | Discovered new exit (range 16) 1580 | -10/Materials | Discovered new exit (range 11) 2025 | -10/Materials | Entered Mines 2053 | -10/Mines | Core integrity fell below 50% 2184 | -10/Mines | Discovered new exit (range 6) 2353 | -10/Mines | Discovered new exit (range 13) 2546 | -10/Mines | Learned 2 Materials zone layouts 2722 | -10/Mines | Assembled infested the area 2727 | -10/Mines | Assisted by a Guerilla fighting off Assembled 3129 | -10/Mines | Received a Mining Laser from a helpful Derelict 3741 | -10/Mines | Learned location of Storage (-9) 4070 | -10/Mines | Core integrity fell below 20% 4224 | -10/Mines | Received a Rocket Launcher from a helpful Derelict 4555 | -10/Mines | Entered Materials 4555 | -9/Materials | Evolved 2 slots: Propulsion x1, Utility x1 4556 | -9/Materials | Identified exit to Storage 4556 | -9/Materials | Identified exit to Materials 4797 | -9/Materials | Discovered new exit (range 15) 5074 | -9/Materials | Build established: Scavenger-Mutant 5181 | -9/Materials | Discovered exit to Materials (range 16) 5208 | -9/Materials | Central database locked down 5715 | -9/Materials | Discovered exit to Storage (range 10) 5806 | -9/Materials | Lost 4 parts (1n2u1w) 6301 | -9/Materials | Discovered new exit (range 15) 6885 | -9/Materials | Repaired Bore Cannon 7076 | -9/Materials | Discovered exit to Materials (range 14) 7355 | -9/Materials | First assault squad dispatched 8168 | -9/Materials | Build established: Mutant 8717 | -9/Materials | Core integrity fell below 50% 9645 | -9/Materials | Sterilization system engaged 9645 | -9/Materials | Non-combat units ordered to evacuate 9745 | -9/Materials | Combat units ordered to evacuate 9912 | -9/Materials | Entered Mines 9913 | -9/Mines | A Derelict revealed a hidden shortcut to a safe place 9939 | -9/Mines | Met a Derelict bent on vengeance 9949 | -9/Mines | A weapon hastily lodged in a ceiling crevice suddenly fell to the ground 10144 | -9/Mines | Learned Materials interactive machine intel 10177 | -9/Mines | Excavation squad dispatched 10177 | -9/Mines | A large section of the Mines collapsed 10191 | -9/Mines | Build established: Scavenger-Mutant 10322 | -9/Mines | Discovered exit to Materials (range 6) 10392 | -9/Mines | Assisted by bots powering up and referring to "LRC-V3" 10528 | -9/Mines | Deemed a non-threat by the Exiles lab entrance 10528 | -9/Mines | Discovered new exit (range 5) 10572 | -9/Mines | Learned location of Zion (-7) 10626 | -9/Mines | Found a damaged Exp. Sensor Array with a note attached 10631 | -9/Mines | Found Prototype Device 10648 | -9/Mines | Identified Exp. Sensor Array 11138 | -9/Mines | Discovered exit to Materials (range 5) 11685 | -9/Mines | Entered Exiles 11743 | -9/Exiles | Met 8R-AWN 11784 | -9/Exiles | Met EX-HEX 11869 | -9/Exiles | Met EX-DEC 12086 | -9/Exiles | Discovered new exit (range 10) 12106 | -9/Exiles | Entered Mines 12207 | -8/Mines | Destroyed 7 combat bots 12937 | -8/Mines | Discovered exit to Materials (range 10) 13403 | -8/Mines | Discovered exit to Materials (range 6) 13886 | -8/Mines | Entered Materials 13886 | -8/Materials | Evolved 2 slots: Utility x2 13887 | -8/Materials | Identified exit to Factory 13888 | -8/Materials | Loaded intel: 18 interactive machine locations 14251 | -8/Materials | Build established: Mutant 14554 | -8/Materials | Repaired Exp. Sensor Array 16211 | -8/Materials | Discovered exit to Factory (range 14) 17175 | -8/Materials | Repaired Arm. Huge Wheel 17215 | -8/Materials | Repaired Missile Launcher 17543 | -8/Materials | Discovered exit to Factory (range 5) 17934 | -8/Materials | Entered Factory 17934 | -7/Factory | Evolved 2 slots: Propulsion x1, Utility x1 18241 | -7/Factory | Build established: Hacker-Mutant 18301 | -7/Factory | Allied Derelicts emerged from ambush trap array 18610 | -7/Factory | Discovered new exit (range 6) 18617 | -7/Factory | Identified exit to Lower Caves 18667 | -7/Factory | Entered Lower Caves 18667 | -7/Lower Caves | Accompanied by 1 ally 18797 | -7/Lower Caves | Attracted the attention of an 0b10 outpost 19166 | -7/Lower Caves | Attracted the attention of an 0b10 checkpoint 19897 | -7/Lower Caves | Learned location of 1 exit from Factory 20436 | -7/Lower Caves | Discovered new exit (range 12) 20450 | -7/Lower Caves | Identified exit to Lower Caves 20469 | -7/Lower Caves | Entered another Lower Caves area 20591 | -7/Lower Caves | Discovered new exit (range 14) 20622 | -7/Lower Caves | Identified exit to Factory 20883 | -7/Lower Caves | Attracted the attention of an 0b10 checkpoint 21193 | -7/Lower Caves | Encountered a Warlord checkpoint 21361 | -7/Lower Caves | Spotted B-75 Beast 21481 | -7/Lower Caves | Destroyed B-75 Beast 21492 | -7/Lower Caves | Lost 3 allies 21708 | -7/Lower Caves | Identified exit to Zion 21737 | -7/Lower Caves | Learned 4 Factory zone layouts 21893 | -7/Lower Caves | Entered Zion 21909 | -7/Zion | Acquired unknown access codes intercepted by a Zionite 22032 | -7/Zion | Found CR-A16's Pointy Stick 22099 | -7/Zion | Learned location of Warlord (-5) 22133 | -7/Zion | Discovered new exit (range 13) 22290 | -7/Zion | Learned location of 1 exit from Factory 22426 | -7/Zion | Visited the Megawrench Repair Shop 22867 | -7/Zion | Given A8's code to call for help 23094 | -7/Zion | Megawrench repaired 8 parts 23253 | -7/Zion | Identified exit to Proximity Caves 23254 | -7/Zion | Entered Proximity Caves 23292 | -6/Proximity Caves | Attracted the attention of an 0b10 checkpoint 23752 | -6/Proximity Caves | Attracted the attention of an 0b10 base 23799 | -6/Proximity Caves | Destroyed 10 combat bots 24356 | -6/Proximity Caves | Learned Factory stockpile data 24506 | -6/Proximity Caves | Snuck into a huge 0b10 base via the rear entrance 24594 | -6/Proximity Caves | Derelicts attacked a huge 0b10 base 24704 | -6/Proximity Caves | Lost 5 allies 24837 | -6/Proximity Caves | Spotted B-75 Beast 25244 | -6/Proximity Caves | Fabricated Enh. Gauss Cannon (x2) 25300 | -6/Proximity Caves | Fabricated Adv. Sensor Array (x2) 25568 | -6/Proximity Caves | Entered Factory 25568 | -6/Factory | Accompanied by 6 allies 25568 | -6/Factory | Evolved 2 slots: Utility x2 25569 | -6/Factory | Identified exit to Factory 25695 | -6/Factory | Lost 4 allies 25740 | -6/Factory | Lost 3 parts (2n1u) 26064 | -6/Factory | Discovered new exit (range 15) 26088 | -6/Factory | Identified exit to Lower Caves 26148 | -6/Factory | Entered Lower Caves 26996 | -6/Lower Caves | Lost 4 parts (2u2w) 27128 | -6/Lower Caves | Discovered new exit (range 15) 27217 | -6/Lower Caves | Identified exit to Lower Caves 27787 | -6/Lower Caves | Entered another Lower Caves area 27867 | -6/Lower Caves | Discovered exit to Factory (range 4) 28188 | -6/Lower Caves | Learned Factory garrison access intel 28348 | -6/Lower Caves | Lost 3 parts (1p1n1u) 29251 | -6/Lower Caves | Discovered new exit (range 8) 29261 | -6/Lower Caves | Identified exit to Data Miner 29507 | -6/Lower Caves | Entered Data Miner 29507 | -6/Data Miner | Discovered new exit (range 6) 29535 | -6/Data Miner | Met Data Miner 29561 | -6/Data Miner | Learned location of Section 7 (-3) 29561 | -6/Data Miner | Acquired the access code to Warlord's prototype stash 29586 | -6/Data Miner | Received God Mode back door access code from Data Miner 29618 | -6/Data Miner | Identified exit to Proximity Caves 29619 | -6/Data Miner | Entered Proximity Caves 29778 | -5/Proximity Caves | Core integrity fell below 50% 29795 | -5/Proximity Caves | Lost 10 parts (2p3n3u2w) 30021 | -5/Proximity Caves | Build established: Mutant 30101 | -5/Proximity Caves | Learned location of Armory (-4) 30442 | -5/Proximity Caves | Discovered exit to Factory (range 9) 30458 | -5/Proximity Caves | Entered Factory 30458 | -5/Factory | Evolved 2 slots: Power x1, Utility x1 30459 | -5/Factory | Identified exit to Upper Caves 30460 | -5/Factory | Loaded intel: 4 garrison access locations 30589 | -5/Factory | Spotted B-75 Beast 30646 | -5/Factory | Revealed the true nature of CR-A16's Pointy Stick 30651 | -5/Factory | Destroyed B-75 Beast 30773 | -5/Factory | Repaired Arm. Huge Wheel 31076 | -5/Factory | Build established: Skirmisher 31496 | -5/Factory | Discovered new exit (range 15) 31536 | -5/Factory | Identified exit to Factory 31568 | -5/Factory | Discovered exit to Upper Caves (range 15) 31821 | -5/Factory | Fabricated D-63 Destroyer? 31866 | -5/Factory | Entered Upper Caves 31866 | -5/Upper Caves | Accompanied by 1 ally 32404 | -5/Upper Caves | Discovered new exit (range 15) 33055 | -5/Upper Caves | Attracted the attention of an 0b10 checkpoint 33233 | -5/Upper Caves | Learned location of 2 exits from Factory 33307 | -5/Upper Caves | Identified exit to Upper Caves 33308 | -5/Upper Caves | Entered another Upper Caves area 33518 | -5/Upper Caves | Discovered exit to Factory (range 11) 33538 | -5/Upper Caves | Learned location of 1 exit from Factory 33655 | -5/Upper Caves | Core integrity fell below 50% 34369 | -5/Upper Caves | Discovered new exit (range 20) 34504 | -5/Upper Caves | Identified exit to Warlord 34506 | -5/Upper Caves | Entered Warlord 34625 | -5/Warlord | System corruption cleaned by Quarantine Array 34749 | -5/Warlord | Build established: Mutant 35790 | -5/Warlord | Met Warlord 35806 | -5/Warlord | Warlord's base attacked by MAIN.C 36156 | -5/Warlord | Warlord forces counterattacked 36421 | -5/Warlord | Found Prototype Launcher 36421 | -5/Warlord | Identified Vortex Catalyst Activator 36462 | -5/Warlord | Found Prototype Piercing Weapon 36462 | -5/Warlord | Identified Vortex Lance 36470 | -5/Warlord | Found Prototype Energy Cannon 36470 | -5/Warlord | Identified Vortex Cannon 36481 | -5/Warlord | Warlord base infiltrated, sounded retreat 36481 | -5/Warlord | Found Prototype Energy Gun 36489 | -5/Warlord | Identified Vortex Shotgun 36495 | -5/Warlord | Found Vortex Shotgun 36506 | -5/Warlord | Found Vortex Cannon 36529 | -5/Warlord | Found Vortex Lance 36709 | -5/Warlord | Spotted Executioner 36712 | -5/Warlord | Destroyed Executioner 36745 | -5/Warlord | Destroyed 10 combat bots 36746 | -5/Warlord | Destroyed Striker 36758 | -5/Warlord | Spotted Striker 36758 | -5/Warlord | Destroyed Striker 36773 | -5/Warlord | Spotted Striker 36779 | -5/Warlord | Destroyed 8 combat bots 36781 | -5/Warlord | Destroyed Striker 36790 | -5/Warlord | Spotted B-86 Titan 36799 | -5/Warlord | Spotted Executioner 36801 | -5/Warlord | Core integrity fell below 20% 36803 | -5/Warlord | Destroyed by P-80 Master with Gamma Rifle Last Messages --------------- 36797_ Mak. Power Source destroyed. 36798_ Overheating: Huge Storage Unit damaged (-175). 36799_ The unstable cave ceiling collapses. 36799_ Slug penetrates Wall. 36799_ P-70 Sage suffers critical hit (Sunder). 36799_ P-70 Sage Imp. Remote Datajack ripped off. 36799_ P-70 Sage destroyed. 36799_ Vortex Cannon destroyed. 36800_ Penetrated by Slug. 36800_ Slug penetrates Wall. 36801_ Dropped Huge Storage Unit. 36801_ Dropped Neutron Cannon. 36802_ Penetrated by Slug. 36802_ Slug penetrates G-67 Veteran. 36802_ G-67 Veteran destroyed. 36802_ Dropped Adv. Shield Generator. 36802_ Dropped Vortex Cannon. 36803_ Critical hit (Meltdown: +340). 36803_ Penetrated by Slug. 36803_ Acquired Lrn. Tractor Beam. Map ----- +----------------------------------------------------+ | """"## ## # #??# # # ####+## | | """## #######/ !#??# # + #?# #? | | ######## X#????#/ !#??###+#+########## ##?# #? | | ???????# ##????#####????# + ## #??# #? | | ######## #############??# # ## #### #? | | # # """" #### # ## #? | | "" # # """""" + # ## #? | | "" # # " "" " ^#### # ## #? | | "" # # #?# # # #? | | # # #?## # ## #### ## | | + + #### + ## " | | ######## # " ## " | | ######## ########## ;;"/###"" " | | E % | | ####### h [ | | ??????# hp B % | | ??????# %|% BB% | | ??????# ######## ;=#!;###"" | | ??????#######????# ;;#####" | | ?????????????????# % " % | | ?????????????????# = /* " % | | ?????????????????# % ] ; %# = | | ?????????????????# !!!!/ ; " % | | #########????????# =%%!! ############# * " | | #????????# ]%!!!!!####?????????##"% "# | | """ #? # ###"##!@##### ############ # | | """ #????#??????# %/!] # | | """ #########???# = ^^ # | | # #???# ^^ # | | """ # ##### ####+####+###+#####+## # | | """ # "" / #?# ? ?# ?? ## ## | | """ # "" #######?# ?# """ ## #? | | # """ #???????# # """ ## ## | | #+####### """ #???????# # """ ## # | | # "" #???????########### ## ## | | ^ # "" #???????#?????????# """ ## #? | | """ # #???????X#????????# """ ## #? | | ^""" # #?????? "????????# "?? ## ## | | """ # #?????? "????????? ? ## # | | """ ##/######????? "?????????######?### ## | | """ ^^ #????? ???????????????# ??# #? | | #???? ####???????????## ### ## | | ^ #???? """"""""???????# | | ### ^ #??? "????#### ## | | #### ## ^ #### "????#^ #? | | #??#### ^ ^/ "#???#^######+####? | | #### ## ^ + ""??????????## #### | | + ^ + "#?????????#X X"# | | ###### ############ "#?????????# "# | | #????###????????????? "#?????????# X"# | +----------------------------------------------------+ Best States ------------- Heat Dissipation 67 Energy Generation 32 Energy Capacity 515 Matter Stores 300 Matter Capacity 300 Sight Range 16 Robot Scan Range 20 Terrain Scan Range 20 Terrain Scan Density 210 Cloak Strength 2 Base Temperature (-) 100 Armor Coverage 450 Resistance: KI 30 Resistance: TH 20 Utility Shielding 66 Evasion (%) 50 Targeting Accuracy 8 Recoil Reduction 2 Matter Filtering 30 Offensive Hacking 21 Item Schematics ----------------- Imp. Heavy Armor Plating | -7/Zion | Archive Coolant Injector | -7/Zion | Archive Hvy. Laser | -7/Zion | Archive Adv. Sensor Array | -7/Zion | Archive Imp. Weapon Cycler | -7/Zion | Archive Arc Projector | -7/Zion | Archive Imp. Proton Missile Launcher | -7/Zion | Archive Imp. Melee Analysis Suite | -7/Zion | Archive Thermal Shield | -7/Zion | Archive Med. Reflective Plating | -7/Zion | Archive Arm. Huge Wheel | -7/Zion | Archive EM Disruption Field | -7/Zion | Archive Matter Filter | -7/Zion | Archive Hvy. Phase Cannon | -7/Zion | Archive Combat Drone Bay | -6/Data Miner | Free Lgt. Regenerative Plating | -6/Data Miner | Free Enh. Flexi-carbon Leg | -6/Data Miner | Free Prc. Energy Filter | -6/Data Miner | Free Cld. Plasma Rifle | -6/Data Miner | Free Imp. Antigrav System | -6/Data Miner | Free Imp. Force Field | -6/Data Miner | Free Force Lance | -6/Data Miner | Free Imp. Thermal Shield | -6/Data Miner | Free Adv. Datajack | -6/Data Miner | Free Mic. Antimatter Reactor | -6/Data Miner | Free Robot Schematics ------------------ Y-72 Warden | -7/Zion | Archive A-02 Transporter | -7/Zion | Archive R-06 Scavenger | -7/Zion | Archive T-07 Excavator | -7/Zion | Archive B-60 Warrior | -6/Data Miner | Free E-15 Imp | -6/Data Miner | Free L-61 Swordsman | -6/Data Miner | Free Y-54 Guardian | -6/Data Miner | Free H-77 Assassin | -6/Data Miner | Free M-22 Extractor | -6/Data Miner | Free Fabricated ------------ Enh. Gauss Cannon | x2 | -6/Proximity Caves | Preloaded Adv. Sensor Array | x2 | -6/Proximity Caves D-63 Destroyer | x1 | -5/Factory | Preloaded Alien Tech Used ----------------- None Achievements -------------- A Powerful Ally? Challenges ------------ None Game ------ Seed ActuatorScrapPenetrator Manual? 0 Play Time 02:52:46 Cumulative 157.2 hours Start 2024.09.26 @ 03:24:33 End 2024.09.26 @ 21:49:36 Sessions 7 Manual Loads 0 Difficulty Rogue Special Mode None Game No. 203 Rogue 203 Adventurer 0 Explorer 0 Win Type - Total 1 Types 1/0/0/0/0/0/0/0/0 Lore% 52 Gallery% 62 Achievement% 49 Wizard Run 0 Options --------- Layout 0 ASCII 0 Keyboard 0 Movement Mouse Keybinds 1 Fullscreen 1 Font 18/Terminus Map View 76x50 Zoom Use 0% Tactical HUD 1 Map Filters NONE Filters NONE Steam 0 RUN: 240311e1-437f-4d6a-9b4b-b65d827f049d